bitfinex-derivatives/quotes_ETHF0:USTF0_20250518
["timestamp","ask_amount","ask_price","bid_price","bid_amount"]
[1747577505641,4.9383,2540.6,2540.2,3.2078]
[1747577505642,0.78701,2540.5,2540.2,3.2078]
[1747577505848,5.72529,2540.6,2540.5,0.78699]
[1747577506146,9.6748,2540.6,2540.5,0.78699]
[1747577506341,0.78701,2540.5,2540.4,0.78701]
[1747577506531,0.78701,2540.5,2540.4,2.53761]
[1747577507139,3.84501,2540.5,2540.4,2.53761]
[1747577507449,3.84501,2540.5,2540.4,1.7506]
[1747577507644,4.818,2540.5,2540.1,2.50781]
[1747577507853,0.78709,2540.2,2540.1,1.7506]
[1747577508148,3.84509,2540.2,2540.1,1.7506]
[1747577508348,0.78715,2540.0,2539.9,1.6714]
[1747577508534,0.78718,2539.9,2539.8,0.7872]
[1747577508737,1.76,2539.9,2539.8,0.7872]
[1747577508938,1.76,2539.9,2539.8,2.5378]
[1747577510151,4.818,2539.9,2539.8,2.5378]
[1747577510449,4.818,2539.9,2539.7,0.78723]
[1747577510643,5.60521,2539.9,2539.7,2.51003]
[1747577510844,0.78721,2539.8,2539.7,2.51003]
[1747577511044,2.49831,2539.8,2539.7,2.51003]
[1747577511347,1.7111,2539.8,2539.7,2.51003]
[1747577511543,3.058,2539.9,2539.8,0.78721]
[1747577511844,3.058,2539.9,2539.8,2.51001]
[1747577512853,3.84518,2539.9,2539.8,2.51001]
[1747577513650,3.84518,2539.9,2539.8,1.7228]
[1747577514849,0.78724,2539.7,2539.6,4.8792]
[1747577515045,0.78724,2539.7,2539.6,3.2078]
[1747577515244,3.84524,2539.7,2539.6,3.2078]
[1747577515446,1.96821,2539.6,2539.3,3.2078]
[1747577515749,0.78733,2539.4,2539.3,3.2078]
[1747577516148,3.84533,2539.4,2539.3,3.2078]
[1747577516651,11.2658,2539.4,2538.7,2.89982632]
[1747577516846,0.78752,2538.8,2538.7,1.13882632]
[1747577517042,10.772,2539.2,2538.7,1.13882632]
[1747577517260,3.4263,2539.3,2538.7,1.13882632]
[1747577517261,3.2078,2539.9,2538.9,3.2078]
[1747577517443,2.47163,2539.8,2539.6,0.78724]
[1747577517750,0.7873,2539.6,2539.4,2.54563]
[1747577517951,0.78729,2539.6,2539.4,1.7583]
[1747577518143,3.058,2539.6,2539.4,2.54562]
[1747577518344,3.84527,2539.6,2539.4,2.54562]
[1747577518543,3.058,2539.6,2539.5,0.7873]
[1747577518746,3.058,2539.6,2539.5,2.4539]
[1747577519040,0.78731,2539.5,2539.3,5.75614]
[1747577519245,2.46159,2539.6,2539.4,2.45392]
[1747577519443,2.46159,2539.6,2539.5,0.7873]
[1747577519444,1.6743,2539.6,2539.5,0.7873]
[1747577519646,2.46157,2539.6,2539.5,1.6666]
[1747577520152,5.51957,2539.6,2539.5,1.6666]
[1747577520652,3.058,2539.6,2539.5,2.4539]
[1747577521348,3.058,2539.6,2539.1,0.78741]
[1747577521652,3.058,2539.6,2539.0,4.9898]
[1747577521653,0.78735,2539.4,2539.2,2.45399]
[1747577521850,0.78735,2539.4,2539.3,1.7709]
[1747577522251,3.84535,2539.4,2539.3,1.7709]
[1747577522551,3.058,2539.4,2539.3,1.7709]
[1747577522751,0.78738,2539.3,2539.1,0.78741]
[1747577522951,0.78738,2539.3,2539.1,2.55831]
[1747577523253,5.53878,2539.3,2539.1,1.7709]
[1747577523450,5.53878,2539.3,2539.1,2.55832]
[1747577523851,4.7514,2539.3,2538.9,1.8075]
[1747577524055,0.78755,2538.8,2538.6,3.99538]
[1747577524356,0.78755,2538.8,2538.7,1.06028703]
[1747577525042,0.78755,2538.8,2538.7,0.94138703]
[1747577525242,3.84555,2538.8,2538.7,0.94138703]
[1747577525849,3.058,2538.8,2538.7,1.72893703]
[1747577526250,3.8455,2538.9,2538.7,1.72893703]
[1747577526452,0.78752,2538.8,2538.7,0.94138703]
[1747577526650,1.6806,2538.8,2538.7,0.78755]
[1747577526953,3.058,2538.9,2538.8,0.78752]
[1747577527152,2.4824,2539.2,2539.0,0.78744]
[1747577527352,4.163,2539.2,2539.1,1.6781]
[1747577527659,4.163,2539.2,2539.1,2.46553]
[1747577527859,4.163,2539.2,2539.1,1.6781]
[1747577528255,7.221,2539.2,2539.1,1.6781]
[1747577529962,0.78745,2539.1,2538.9,2.46837]
[1747577530255,1.6623,2539.1,2539.0,0.78746]
[1747577530456,3.058,2539.2,2539.1,0.78743]
[1747577530853,0.98181224,2539.7,2539.6,0.78727]
[1747577531053,0.98181224,2539.7,2539.3,3.2078]
[1747577531258,0.78727,2539.6,2539.4,1.7645]
[1747577531456,1.6708,2539.5,2539.4,2.55182]
[1747577531862,0.78727,2539.6,2539.4,2.55181]
[1747577532064,1.76906224,2539.7,2539.5,2.43699]
[1747577532263,1.76906224,2539.7,2539.6,1.7645]
[1747577532563,3.43986224,2539.7,2539.6,1.7645]
[1747577533170,6.49786224,2539.7,2539.6,1.7645]
[1747577533868,4.03981224,2539.7,2539.6,2.55177]
[1747577534165,4.03981224,2539.7,2539.6,1.7645]
[1747577534364,6.52525224,2539.7,2539.6,1.7645]
[1747577534567,0.78738,2539.3,2539.1,0.78741]
[1747577534866,0.78736,2539.4,2539.2,2.46297]
[1747577535061,0.78736,2539.4,2539.3,1.6756]
[1747577535764,1.96826,2539.5,2538.9,3.3869]
[1747577535962,0.78749,2538.9,2538.8,3.2078]
[1747577536259,5.02674,2538.9,2538.5,1.7162]
[1747577536463,5.02674,2538.9,2538.4,1.6707]
[1747577536464,3.4031,2538.8,2538.4,2.46323]
[1747577536667,0.78761,2538.5,2538.4,1.6756]
[1747577537060,3.4031,2538.8,2538.4,1.6756]
[1747577537259,0.78759,2538.6,2538.4,2.46323]
[1747577537461,0.78761,2538.5,2538.4,1.6756]
[1747577538057,0.78761,2538.5,2538.2,5.71240044]
[1747577538262,1.7009,2538.4,2538.3,2.56427]
[1747577538760,2.48854,2538.4,2538.3,1.7766]
[1747577538966,0.78768,2538.3,2538.2,1.7162]
[1747577539163,0.78771,2538.2,2538.1,3.2078]
[1747577539765,1.7009,2538.3,2537.8,3.058]
[1747577540066,0.7878,2537.9,2537.8,4.8346]
[1747577540266,0.7878,2537.9,2537.8,1.7766]
[1747577540668,0.78779,2538.0,2537.8,1.7766]
[1747577540869,2.43809,2538.0,2537.8,2.56443]
[1747577541166,0.7878,2537.9,2537.8,4.8346]
[1747577541365,2.4381,2537.9,2537.8,4.8346]
[1747577541564,1.6503,2537.9,2537.8,4.8346]
[1747577542173,1.6503,2537.9,2537.8,5.62243]
[1747577542474,2.4381,2537.9,2537.8,4.8346]
[1747577543074,3.2078,2538.4,2537.8,4.8346]
[1747577543271,0.78769,2538.3,2538.1,0.78773]
[1747577543467,0.78766,2538.4,2538.2,1.7293]
[1747577543768,0.78766,2538.4,2538.2,2.51699]
[1747577544068,3.2078,2538.7,2538.6,0.78758]
[1747577544276,0.78763,2538.5,2538.3,5.2575]
[1747577544576,0.78763,2538.5,2538.4,0.09218003]
[1747577544970,1.7441,2538.7,2538.5,0.7876]
[1747577545170,1.7441,2538.7,2538.6,1.7293]
[1747577545385,3.14206684,2538.8,2538.7,0.78755]
[1747577546586,1.76928224,2539.0,2538.6,1.7293]
[1747577546587,0.98181224,2539.0,2538.6,1.7293]
[1747577546779,1.76928224,2539.0,2538.6,1.7293]
[1747577547086,0.78749,2538.9,2538.6,12.3643]
[1747577547289,0.78749,2538.9,2538.7,2.51873]
[1747577547485,0.78749,2538.9,2538.8,1.7312]
[1747577548479,0.78758,2538.7,2538.5,3.2078]
[1747577548685,0.78753,2538.8,2538.6,2.51878]
[1747577548885,0.78753,2538.8,2538.7,1.7312]
[1747577549077,0.78758,2538.6,2538.5,3.2078]
[1747577549280,1.7344,2538.7,2538.2,3.2078]
[1747577549583,2.52197,2538.7,2538.5,0.7876]
[1747577549788,0.78759,2538.6,2538.4,0.78762]
[1747577550387,0.78759,2538.6,2538.5,1.7731]
[1747577550578,2.58199,2538.6,2538.5,1.7731]
[1747577551583,0.78757,2538.7,2538.5,1.7731]
[1747577551886,0.78758,2538.6,2538.5,1.7731]
[1747577553091,3.84558,2538.6,2538.5,1.7731]
[1747577553587,0.78771,2538.2,2538.1,1.7083]
[1747577553983,0.7878,2537.9,2537.8,1.05778179]
[1747577554185,0.7878,2537.9,2537.6,3.2078]
[1747577554186,0.78786,2537.7,2537.6,5.036]
[1747577554785,0.78786,2537.7,2537.6,1.8282]
[1747577555487,0.78789,2537.6,2537.5,1.13882632]
[1747577556288,0.78789,2537.6,2537.5,4.19682632]
[1747577556687,0.78789,2537.6,2537.5,3.058]
[1747577556886,1.7345,2537.8,2537.5,3.058]
[1747577557082,0.78785,2537.8,2537.6,1.8187]
[1747577557285,3.2078,2537.9,2537.6,1.8187]
[1747577557491,3.2078,2537.9,2537.5,3.058]
[1747577557492,0.78786,2537.7,2537.5,3.84591]
[1747577557684,0.78786,2537.7,2537.6,1.8187]
[1747577558893,0.78789,2537.6,2537.5,3.058]
[1747577559691,0.78801,2537.2,2537.1,1.7809]
[1747577559890,3.4849,2537.5,2537.0,2.47066]
[1747577560196,0.78802,2537.2,2537.1,1.7809]
[1747577560691,0.78804,2537.2,2537.0,3.058]
[1747577560890,0.78826,2536.4,2536.3,1.53780044]
[1747577561292,30.24806,2536.4,2536.3,1.53780044]
[1747577561792,29.4598,2536.4,2536.0,4.12172107]
[1747577561987,0.78833,2536.2,2536.1,2.14511338]
[1747577562385,5.78833,2536.2,2536.1,2.14511338]
[1747577562583,0.78836,2536.1,2536.0,1.6812]
[1747577562787,3.99616,2536.1,2536.0,1.6812]
[1747577563195,3.99616,2536.1,2536.0,4.7392]
[1747577563788,3.2078,2536.1,2536.0,4.7392]
[1747577563993,3.2078,2536.1,2536.0,5.52759]
[1747577564194,3.2078,2536.1,2536.0,4.7392]
[1747577564494,3.2078,2536.1,2536.0,5.52759]
[1747577565189,3.2078,2536.1,2536.0,4.7392]
[1747577566394,3.99616,2536.1,2536.0,4.7392]
[1747577566598,3.2078,2536.1,2536.0,4.7392]
[1747577567695,3.2078,2536.1,2536.0,5.52759]
[1747577567895,3.2078,2536.1,2536.0,10.52759]
[1747577568095,4.8573,2536.8,2536.0,17.21335298]
[1747577568302,0.78817,2536.7,2536.4,0.78824]
[1747577568501,0.78817,2536.7,2536.5,1.7505]
[1747577569000,0.7882,2536.6,2536.5,1.7505]
[1747577569204,0.7882,2536.6,2536.5,4.8085]
[1747577569404,0.78819,2536.7,2536.5,4.8085]
[1747577569593,3.2078,2536.8,2536.5,5.59673]
[1747577570004,0.78817,2536.7,2536.5,4.8085]
[1747577570204,3.99595,2536.8,2536.5,5.59673]
[1747577570405,0.78818,2536.7,2536.5,4.8085]
[1747577570704,0.78818,2536.7,2536.5,5.59673]
[1747577571191,3.2078,2536.8,2536.5,4.8085]
[1747577571397,0.78817,2536.7,2536.5,4.8085]
[1747577571791,3.2078,2536.8,2536.5,4.8085]
[1747577572098,0.78819,2536.7,2536.5,4.8085]
[1747577572406,0.78819,2536.7,2536.5,3.058]
[1747577572602,3.2078,2536.5,2534.5,5.1799]
[1747577572805,3.2078,2535.4,2535.0,1.7569]
[1747577573103,3.99639,2535.4,2535.1,40.8]
[1747577573303,3.99639,2535.4,2535.2,1.7569]
[1747577573503,3.2078,2535.4,2535.2,1.7569]
[1747577573698,3.2078,2535.4,2535.2,2.54553]
[1747577573899,3.2078,2535.4,2535.3,0.78861]
[1747577574203,3.2078,2535.4,2535.3,4.8676]
[1747577575291,3.2078,2535.4,2535.3,5.65621]
[1747577576097,3.2078,2535.4,2535.3,46.45621]
[1747577576301,3.2078,2535.7,2535.6,0.7885]
[1747577576906,3.2078,2535.7,2535.6,5.7885]
[1747577577403,3.2078,2535.7,2535.6,0.7885]
[1747577577993,3.2078,2535.7,2535.5,6.5721]
[1747577578196,3.2078,2535.7,2535.5,7.36063]
[1747577578607,0.78851,2535.6,2535.5,4.7919]
[1747577579699,2.46921,2535.6,2535.5,4.7919]
[1747577579895,2.46921,2535.6,2535.5,3.058]
[1747577580104,0.78863,2535.3,2535.1,1.7021]
[1747577580301,3.99644,2535.2,2535.1,1.7021]
[1747577580502,3.99644,2535.2,2535.1,42.5021]
[1747577580704,3.2078,2535.2,2535.1,42.5021]
[1747577581000,3.99644,2535.2,2535.1,1.7021]
[1747577581401,3.99644,2535.2,2535.1,42.5021]
[1747577582198,3.2078,2535.2,2535.1,43.29077]
[1747577583305,12.279,2536.0,2535.1,43.29077]
[1747577583306,3.2078,2535.6,2535.1,51.69356552]
[1747577583512,3.2078,2535.6,2535.5,0.78855]
[1747577583699,0.78831,2536.3,2535.5,3.2078]
[1747577583902,4.7743547,2536.4,2536.2,0.78832]
[1747577584101,4.7743547,2536.4,2535.9,3.2078]
[1747577584102,2.3379747,2536.4,2536.3,0.7883]
[1747577584307,2.3379747,2536.4,2536.3,40.8]
[1747577584508,3.1262447,2536.4,2536.3,40.8]
[1747577584699,4.7743447,2536.4,2536.3,40.8]
[1747577584903,3.9860747,2536.4,2536.3,40.8]
[1747577585210,2.3379747,2536.4,2536.3,44.6463]
[1747577585716,2.3379747,2536.4,2536.3,43.858]
[1747577586411,3.1262447,2536.4,2536.3,43.858]
[1747577586909,0.78827,2536.4,2536.3,43.858]
[1747577587298,0.78827,2536.4,2536.1,2.60084]
[1747577587497,0.7883,2536.3,2536.2,1.8125]
[1747577587810,2.5845,2536.3,2536.2,1.8125]
[1747577588203,1.7962,2536.3,2536.2,2.60083]
[1747577588408,3.2078,2536.4,2536.3,0.7883]
[1747577588603,3.2078,2536.4,2536.3,2.6008]
[1747577589210,3.2078,2536.4,2536.3,5.6588]
[1747577590409,1.7775,2536.8,2536.5,0.78821]
[1747577590612,0.78817,2536.7,2536.6,1.7672]
[1747577591807,0.7882,2536.6,2536.5,3.058]
[1747577592109,0.78823,2536.5,2536.4,3.4393]
[1747577592306,2.52472,2536.6,2536.4,5.0848]
[1747577592506,2.52472,2536.6,2536.4,5.87306]
[1747577592710,1.7365,2536.6,2536.4,5.0848]
[1747577593010,2.52472,2536.6,2536.4,5.87306]
[1747577593711,1.7365,2536.6,2536.5,0.78823]
[1747577594011,0.78819,2536.7,2536.5,2.43373]
[1747577594605,0.7882,2536.6,2536.5,1.6455]
[1747577595005,0.78819,2536.7,2536.5,2.43373]
[1747577595204,0.78819,2536.7,2536.5,2.43372]
[1747577595602,4.9726,2536.9,2536.6,0.7882]
[1747577595809,0.78817,2536.8,2536.7,1.6925]
[1747577596008,2.55297,2536.8,2536.7,1.6925]
[1747577599613,3.99593,2536.9,2536.7,2.48066]
[1747577599812,0.78809,2537.0,2536.7,1.6925]
[1747577600012,0.78811,2536.9,2536.8,1.7528]
[1747577600213,1.7542,2537.1,2536.8,2.54094]
[1747577600409,0.7881,2537.0,2536.8,2.54094]
[1747577600713,0.78814,2536.8,2536.7,0.09218003]
[1747577601315,4.16894,2536.8,2536.7,0.09218003]
[1747577601623,0.78823,2536.5,2536.4,5.92666]
[1747577601817,0.78822,2536.6,2536.4,5.92666]
[1747577602314,0.78823,2536.5,2536.4,5.1384]
[1747577602516,0.7883,2536.3,2536.2,5.856]
[1747577602705,1.6688,2536.5,2536.1,4.9069]
[1747577602905,0.78833,2536.2,2536.1,4.9069]
[1747577603608,0.78839,2536.0,2535.9,1.7413]
[1747577603915,0.78853,2535.6,2535.4,1.53615583]
[1747577604110,0.78855,2535.5,2535.4,3.33615583]
[1747577604517,0.78855,2535.5,2535.4,1.53615583]
[1747577605012,0.78861,2535.3,2535.2,2.30423375]
[1747577605613,7.42991,2535.3,2535.2,2.30423375]
[1747577606513,0.78864,2535.2,2535.1,3.058]
[1747577606717,2.42994,2535.2,2535.1,3.058]
[1747577607017,17.1313,2535.2,2534.8,3.2078]
[1747577607222,0.7887,2535.0,2534.9,3.058]
[1747577607524,1.6413,2535.2,2534.9,3.84672]
[1747577607811,0.78868,2535.1,2534.9,4.8153]
[1747577608017,2.42995,2535.2,2534.9,4.8153]
[1747577608213,3.2078,2535.4,2534.9,4.8153]
[1747577608616,0.7887,2535.0,2534.9,4.8153]
[1747577608815,0.7887,2535.0,2534.9,3.058]
[1747577609424,3.9965,2535.0,2534.9,3.058]
[1747577609921,14.4885,2535.0,2534.9,3.058]
[1747577610219,3.2078,2535.0,2534.9,0.78873]
[1747577610613,10.464,2535.3,2535.1,0.78866]
[1747577610614,3.2078,2535.3,2535.1,0.78866]
[1747577610819,3.99642,2535.3,2535.0,0.78868]
[1747577611012,3.2078,2535.3,2535.1,2.49236]
[1747577611211,3.2078,2535.3,2535.2,1.7037]
[1747577611616,0.78864,2535.2,2535.0,3.058]
[1747577611822,1.8201,2535.2,2535.0,3.84669]
[1747577612022,1.8201,2535.2,2535.1,1.7037]
[1747577612320,3.2078,2535.3,2535.1,1.7037]
[1747577612520,1.669,2535.6,2535.3,0.78859]
[1747577612521,1.8201,2535.5,2535.3,0.78859]
[1747577612721,0.98181224,2535.7,2535.6,0.78851]
[1747577613224,0.98181224,2535.7,2535.6,8.99631]
[1747577613621,0.98181224,2535.7,2534.8,3.2078]
[1747577613622,26.93181224,2535.7,2534.8,3.2078]
[1747577613822,3.2078,2535.0,2534.5,1.6969]
[1747577614023,3.2078,2535.0,2534.8,0.78875]
[1747577614216,3.9965,2535.0,2534.9,1.6969]
[1747577614620,0.78881,2534.7,2534.5,3.058]
[1747577614821,3.2078,2534.7,2534.6,1.6969]
[1747577615022,3.99659,2534.7,2534.6,1.6969]
[1747577615423,3.99659,2534.7,2534.6,1.459]
[1747577615629,0.78883,2534.6,2534.5,3.058]
[1747577615831,2.45173,2534.6,2534.5,3.058]
[1747577617327,12.94573,2534.6,2534.5,3.058]
[1747577618131,0.78896,2534.2,2533.9,2.55693]
[1747577618326,3.99676,2534.2,2533.9,1.7679]
[1747577618533,3.99676,2534.2,2534.0,1.6997]
[1747577618924,3.2078,2534.2,2534.0,1.6997]
[1747577619124,3.2078,2534.2,2534.0,4.7577]
[1747577619733,3.2078,2534.2,2534.1,0.78898]
[1747577620331,3.99677,2534.2,2534.0,4.7577]
[1747577620531,3.2078,2534.2,2534.0,4.7577]
[1747577620735,1.7418,2534.1,2534.0,4.7577]
[1747577621126,3.2078,2534.2,2534.0,5.54671]
[1747577621332,3.2078,2534.2,2534.1,0.78898]
[1747577622239,3.2078,2534.2,2534.0,5.54669]
[1747577622443,3.99677,2534.2,2534.0,4.7577]
[1747577622739,5.72357,2534.2,2534.0,4.7577]
[1747577623336,5.72356,2534.2,2534.0,4.7577]
[1747577623542,0.78898,2534.1,2534.0,4.7577]
[1747577623743,0.78898,2534.1,2534.0,3.058]
[1747577623944,1.7268,2534.1,2534.0,3.058]
[1747577624141,2.51578,2534.1,2534.0,4.784]
[1747577626052,2.51578,2534.1,2534.0,3.058]
[1747577627550,3.99677,2534.2,2534.0,3.058]
[1747577627754,3.99675,2534.2,2534.1,1.7734]
[1747577629545,3.2078,2534.2,2534.1,1.7734]
[1747577629752,3.2078,2534.2,2534.1,2.65456003]
[1747577630053,5.56065431,2534.9,2534.3,0.78889]
[1747577630258,0.78885,2534.6,2534.4,1.742]
[1747577630456,0.78886,2534.5,2534.4,1.742]
[1747577630750,3.2078,2534.6,2534.4,1.742]
[1747577630751,3.99665,2534.6,2534.4,1.742]
[1747577630954,0.78886,2534.5,2534.4,1.742]
[1747577631153,3.2078,2534.6,2534.4,4.8]
[1747577631455,0.78886,2534.5,2534.4,4.8]
[1747577631755,0.78886,2534.5,2534.4,3.058]
[1747577631949,2.49596,2534.5,2534.4,3.058]
[1747577635757,3.2078,2534.6,2534.5,0.78886]
[1747577635954,3.14159431,2534.9,2534.7,0.78878]
[1747577636145,3.14159431,2534.9,2534.5,1.8098]
[1747577636146,2.35285431,2534.9,2534.8,3.4615]
[1747577636350,3.13713908,2535.2,2534.8,11.9328786]
[1747577636546,0.39113908,2535.2,2535.1,0.78867]
[1747577636762,0.39113908,2535.2,2535.1,11.19667]
[1747577637057,0.39113908,2535.2,2535.1,15.3065557]
[1747577637359,0.39113908,2535.2,2535.1,11.19667]
[1747577638455,0.39113908,2535.2,2535.1,11.19167]
[1747577638959,0.78859,2535.4,2535.2,0.78862]
[1747577639147,0.78859,2535.4,2535.3,2.47901]
[1747577639457,3.2078,2535.5,2535.3,1.6904]
[1747577639650,0.78858,2535.4,2535.3,1.6904]
[1747577640252,0.78858,2535.4,2528.5,29.38303586]
[1747577640253,0.78858,2535.4,2534.5,3.2078]
[1747577640456,0.78873,2534.9,2534.7,2.53227]
[1747577640658,0.78868,2535.1,2534.9,0.78872]
[1747577640857,1.6913,2535.3,2534.7,1.7435]
[1747577641059,0.78866,2535.2,2534.7,1.7435]
[1747577641245,0.78866,2535.2,2535.0,0.7887]
[1747577641446,0.78866,2535.2,2535.0,0.5587]
[1747577641649,3.2078,2535.5,2535.4,0.78858]
[1747577642060,3.2078,2535.5,2535.4,10.1599291]
[1747577642355,3.2078,2535.5,2535.4,3.84658]
[1747577642864,3.99635,2535.5,2535.4,3.84658]
[1747577643159,3.99635,2535.5,2535.4,3.058]
[1747577644861,0.78869,2535.1,2534.8,0.78876]
[1747577645053,1.8043,2535.0,2534.8,2.47326]
[1747577645454,10.421,2535.3,2534.8,1.6845]
[1747577645762,3.2078,2535.2,2534.8,1.6845]
[1747577646157,3.99642,2535.3,2535.0,0.78868]
[1747577646463,3.99642,2535.3,2535.1,2.47317]
[1747577646654,3.99642,2535.3,2535.2,1.7601]
[1747577647260,3.2078,2535.3,2535.2,1.7601]
[1747577648061,3.99641,2535.3,2535.2,1.7601]
[1747577648769,0.78864,2535.2,2535.1,3.058]
[1747577648967,2.47594,2535.2,2535.1,3.058]
[1747577649265,0.78867,2535.1,2535.0,3.058]
[1747577657672,16.14567,2535.1,2535.0,1.08485697]
[1747577658075,0.78886,2534.5,2534.4,1.8016]
[1747577658278,3.99666,2534.5,2534.4,1.8016]
[1747577658471,6.551,2534.4,2532.5,2.44052107]
[1747577658670,18.5628,2534.5,2531.7,3.73115831]
[1747577658671,0.7897,2531.8,2531.7,2.30295831]
[1747577658873,0.7897,2531.8,2531.5,3.5205952]
[1747577658874,0.78976,2531.6,2531.5,3.5205952]
[1747577659471,0.78975,2531.6,2531.5,3.5205952]
[1747577660075,0.78974,2531.7,2531.4,7.68077919]
[1747577660274,3.2078,2531.5,2531.4,7.68077919]
[1747577660672,3.99759,2531.5,2531.4,7.68077919]
[1747577662176,3.99759,2531.5,2531.4,6.15907919]
[1747577662475,3.99759,2531.5,2529.7,5.24988904]
[1747577662476,0.78986,2531.3,2530.5,0.79008]
[1747577662679,3.2078,2530.9,2530.2,40.8]
[1747577662878,3.2078,2530.9,2530.6,4.46469292]
[1747577663177,3.2078,2530.9,2530.4,0.79011]
[1747577663379,3.2078,2530.9,2530.4,15.04088034]
[1747577663674,3.2078,2530.6,2530.5,6.28379292]
[1747577663978,3.2078,2530.6,2530.5,1.8191]
[1747577664179,3.2078,2530.6,2530.5,14.25077034]
[1747577664382,3.2078,2530.6,2530.3,1.8191]
[1747577664581,3.2078,2530.6,2530.4,0.79011]
[1747577664873,3.2078,2530.6,2530.5,1.6553]
[1747577665074,3.2078,2530.6,2530.5,15.90607034]
[1747577665272,3.2078,2530.6,2530.2,4.17458]
[1747577665472,1.679,2531.1,2530.4,1.6553]
[1747577665667,3.2078,2530.5,2530.4,1.6553]
[1747577666468,3.2078,2530.5,2530.4,16.69620034]
[1747577668673,3.2078,2530.5,2530.4,16.57720034]
[1747577669074,3.2078,2530.5,2530.4,15.78707034]
[1747577669376,3.2078,2530.5,2530.4,21.0473399]
[1747577669577,3.2078,2530.5,2530.4,41.7683399]
[1747577669877,3.2078,2530.5,2530.4,31.4123399]
[1747577670274,3.2078,2530.5,2530.4,16.57720034]
[1747577671174,3.9979,2530.5,2530.4,1.5363]
[1747577671475,3.2078,2530.5,2530.4,2.32643]
[1747577671674,3.9979,2530.5,2530.4,1.5363]
[1747577671874,5.8023,2530.5,2530.4,1.5363]
[1747577672383,5.0122,2530.5,2530.4,2.32643]
[1747577672775,5.0122,2530.5,2530.4,1.5363]
[1747577672972,5.0122,2530.5,2530.4,2.32643]
[1747577673185,5.0122,2530.5,2529.3,3.56680699]
[1747577673479,3.2078,2529.8,2529.7,1.7226]
[1747577673679,3.2078,2529.8,2529.7,57.56372034]
[1747577674077,3.2078,2529.8,2529.7,16.76372034]
[1747577674281,3.2078,2529.8,2529.7,2.51295]
[1747577674986,3.2078,2529.8,2529.7,16.76372034]
[1747577677088,3.2078,2529.8,2529.7,2.51295]
[1747577677388,3.2078,2529.8,2529.7,16.76372034]
[1747577677586,3.2078,2529.8,2529.7,21.76372034]
[1747577677794,3.2078,2531.0,2530.0,1.97558]
[1747577677977,0.78999,2530.9,2530.3,1.97542]
[1747577678287,3.99775,2531.0,2530.4,3.78709]
[1747577678582,0.79002,2530.8,2530.4,1.90398003]
[1747577678788,3.2078,2531.0,2530.4,6.33077037]
[1747577678983,5.18272,2531.0,2530.4,0.09218003]
[1747577679284,5.18272,2531.0,2530.5,0.79009]
[1747577679487,5.18272,2531.0,2530.4,0.88229003]
[1747577679688,1.97495,2530.9,2530.4,0.09218003]
[1747577679882,1.97495,2530.9,2530.4,0.88230003]
[1747577680188,0.7901,2530.5,2530.4,0.88231003]
[1747577680397,0.7901,2530.5,2530.4,0.09218003]
[1747577681685,3.2078,2530.6,2530.4,0.09218003]
[1747577682278,3.99789,2530.6,2530.5,1.8266]
[1747577682782,3.2078,2530.6,2530.5,1.8266]
[1747577683387,0.7901,2530.5,2530.4,0.09218003]
[1747577683588,2.4775,2530.5,2530.4,0.09218003]
[1747577683985,3.2078,2530.6,2530.4,0.88231003]
[1747577684287,3.2078,2530.6,2530.5,2.4827]
[1747577684484,3.2078,2530.6,2530.5,1.6926]
[1747577684687,3.2078,2530.6,2530.5,2.4827]
[1747577685081,3.2078,2530.6,2530.5,1.6926]
[1747577685584,3.99787,2530.6,2530.5,1.6926]
[1747577688590,0.7901,2530.5,2530.4,0.09218003]
[1747577688888,3.2078,2530.6,2530.4,4.51897037]
[1747577689487,3.2078,2530.6,2530.5,1.6625]
[1747577690198,3.2078,2530.6,2530.0,10.372]
[1747577690491,0.79012,2530.5,2530.2,0.79018]
[1747577690693,2.54462,2530.5,2530.3,1.6625]
[1747577690993,0.79013,2530.4,2530.3,1.6625]
[1747577691192,2.54463,2530.4,2530.3,1.6625]
[1747577691988,0.79012,2530.5,2530.3,2.45267]
[1747577692197,0.79013,2530.4,2530.3,1.6625]
[1747577692596,0.79013,2530.4,2530.3,1.1625]
[1747577692894,3.15387123,2530.4,2530.3,1.1625]
[1747577693991,2.36374123,2530.4,2530.3,1.1625]
[1747577694198,2.36374123,2530.4,2530.3,1.95267]
[1747577694995,2.36374123,2530.4,2530.3,6.37946034]
[1747577696194,2.36374123,2530.5,2530.4,0.79013]
[1747577696394,2.36374123,2530.5,2530.4,2.53153]
[1747577696594,2.36374123,2530.5,2530.4,6.95832034]
[1747577698896,1.57680721,2530.5,2530.4,6.95832034]
[1747577699399,1.57680721,2530.5,2530.4,10.16612034]
[1747577699897,1.57680721,2530.5,2530.4,8.42472034]
[1747577700596,2.64692428,2530.9,2530.8,0.79001]
[1747577700797,2.64692428,2530.9,2530.8,0.88901]
[1747577701298,1.97426,2531.8,2530.8,11.4760624]
[1747577701602,0.78984,2531.4,2531.3,0.78985]
[1747577701896,3.2078,2531.6,2531.1,1.9748]
[1747577702202,3.2078,2531.6,2531.5,0.78979]
[1747577702400,3.2078,2531.6,2531.2,6.37131463]
[1747577702705,0.78984,2531.4,2531.3,0.78985]
[1747577703096,2.63621,2531.5,2531.4,0.78982]
[1747577703598,3.2078,2531.6,2531.5,0.78979]
[1747577705801,3.2078,2531.9,2531.5,5.78979]
[1747577705999,1.8808,2532.3,2531.7,5.1821]
[1747577706198,1.8808,2532.3,2531.8,3.2078]
[1747577706503,3.99733,2532.4,2532.3,0.78954]